Cogmind - Beta 13 @@@ ROGUE MODE // 2024.04.25 @ 22:21:09 Player: Alphabethead Result: Self-destructed Performance ------------- Evolutions (3) 1500 Regions Visited (6) 1200 Robots Destroyed (49) 245 Value Destroyed (1543) 1543 Prototype IDs (0) 0 Alien Tech Used (0) 0 Bonus (37) 37 TOTAL SCORE: 4525 Bonus ------- High Alert Combat Kills 37 Cogmind --------- Core Integrity 65/700 Matter 287/300 Energy 76/100 System Corruption 1% Temperature Danger (487) Movement Core (350) Ox6 Location -7/Factory Parts ------- > --- POWER (1) -------- (None) > --- PROPULSION (3) --- (None) > --- UTILITY (6) ------ Large Storage Unit Improved Signal Interpreter > --- WEAPON (3) ------- (None) > --- INVENTORY (15) --- Micro Nuclear Core Compact Wheel Compact Wheel Compact Matter Pod (67) Targeting Computer Energy Filter Hardened Medium Armor Plating Hardened Medium Armor Plating Peak State ------------ > --- POWER ------------ Micro Nuclear Core > --- PROPULSION ------- Wheel Wheel Compact Wheel > --- UTILITY ---------- Heat Sink Large Storage Unit Improved Signal Interpreter Matter Filter Weapon Cycler Transmission Jammer > --- WEAPON ----------- High-powered Shotgun High-powered Shotgun High-powered Shotgun > --- INVENTORY -------- Micro Nuclear Core Compact Wheel Compact Wheel Compact Matter Pod Targeting Computer Energy Filter Hardened Medium Armor Plating Hardened Medium Armor Plating Shock Rifle Pulse Rifle Gatling Laser Mining Laser [Rating: 36] Favorites ----------- Power Light Angular Momentum Engine Engine Light Angular Momentum Engine Power Core Micro Nuclear Core Propulsion Wheel Leg Carbon-fiber Leg Wheel Wheel Utility Large Storage Unit Device Transmission Jammer Storage Large Storage Unit Processor Improved Signal Interpreter Protection Hardened Medium Armor Plating Weapon High-powered Shotgun Energy Gun Small Laser Ballistic Gun High-powered Shotgun Launcher Rocket Launcher Special Weapon Mining Laser Build | -11 -10 -10 -9 -9 -8 -7 ------- Run | Yrd Mat Min Mat Min Mat Fac Slots Evolved 6 | . . . 2 . 2 2 Power . | . . . . . . . Propulsion 1 | . . . . . 1 . Utility 4 | . . . 2 . 1 1 Weapon 1 | . . . . . . 1 Parts Attached 66 | 7 1 . 9 5 28 16 Power 8 | 1 . . 3 . 3 1 Engine 4 | 1 . . 2 . 1 . Core 4 | . . . 1 . 2 1 Reactor . | . . . . . . . Propulsion 12 | 2 . . 1 1 5 3 Treads . | . . . . . . . Leg 1 | . . . . . 1 . Wheel 11 | 2 . . 1 1 4 3 Hover . | . . . . . . . Flight . | . . . . . . . Utility 23 | 2 1 . 2 3 10 5 Device 16 | 1 . . 2 3 7 3 Storage 2 | 1 1 . . . . . Processor 3 | . . . . . 3 . Hackware . | . . . . . . . Protection 2 | . . . . . . 2 Artifact . | . . . . . . . Weapon 23 | 2 . . 3 1 10 7 Energy Gun 10 | 1 . . 1 . 5 3 Energy Cannon . | . . . . . . . Ballistic Gun 9 | 1 . . 2 1 2 3 Ballistic Cannon . | . . . . . . . Launcher 1 | . . . . . 1 . Special Weapon 3 | . . . . . 2 1 Impact Weapon . | . . . . . . . Slashing Weapon . | . . . . . . . Piercing Weapon . | . . . . . . . Special Melee Weapon . | . . . . . . . Unidentified Prototypes . | . . . . . . . Parts Lost 33 | . . . 4 1 8 20 Power 3 | . . . 1 . . 2 Propulsion 9 | . . . . 1 3 5 Utility 8 | . . . 1 . 2 5 Weapon 13 | . . . 2 . 3 8 Highest Loss Streak 15 | . . . 3 1 8 15 To Critical Strikes . | . . . . . . . Average Slot Usage (%) 91 | . 100 100 89 86 90 92 Engine 6 | . 14 14 6 11 5 3 Core 2 | . . . 2 . 3 3 Wheel 21 | . 28 28 22 21 20 21 Device 20 | . 14 14 25 22 20 21 Storage 9 | . 14 14 11 11 9 7 Processor 6 | . . . . . 12 7 Protection 1 | . . . . . . 4 Energy Gun 8 | . 14 14 10 11 10 . Ballistic Gun 12 | . 14 14 10 10 5 21 Naked Turns . | . . . . . . . Heaviest Build 53 | 12 27 27 33 33 43 53 Greatest Support 36 | 32 32 32 32 32 36 36 Greatest Overweight (x) 11 | 1 . . 1 1 11 2 Average Overweight (x) . | . . . . . . 1 Largest Inventory Capacity 15 | 8 15 15 15 15 15 15 Average Capacity 14 | 7 10 15 15 15 15 15 Most Carried 14 | 6 8 8 8 11 14 14 Average Carried 8 | 2 7 8 4 7 8 11 Final Capacity 15 | 8 15 15 15 15 15 15 Final Carried 14 | 6 8 8 4 11 14 8 Class Distribution -------------------- 31% | Mutant 20% | Scavenger-Mutant 15% | Scavenger-Gunner 12% | Scavenger-Skirmisher 11% | Scavenger-Tank 9% | Infiltrator-Mutant Dominant Class ---------------- Mutant | -10/Materials Mutant | -10/Mines Mutant | -9/Materials Scavenger-Mutant | -9/Mines Scavenger-Skirmisher | -8/Materials Scavenger-Gunner | -7/Factory Resources | -11 -10 -10 -9 -9 -8 -7 ----------- Run | Yrd Mat Min Mat Min Mat Fac Matter Collected 1300 | 275 47 . 145 81 342 410 Remotely . | . . . . . . . Salvage Created 1790 | 103 192 . 307 127 521 540 Parts 94 | 8 7 . 18 10 32 19 Haulers Intercepted . | . . . . . . . Recyclers Shooed 5 | 1 2 . . 1 1 . Parts Field Recycled . | . . . . . . . Retrieved Matter . | . . . . . . . Parts Self-Destructed . | . . . . . . . Prevented . | . . . . . . . Kills | -11 -10 -10 -9 -9 -8 -7 ------- Run | Yrd Mat Min Mat Min Mat Fac Combat Hostiles Destroyed 34 | . 2 . 8 4 8 12 Guns 31 | . 2 . 8 4 5 12 Cannons 1 | . . . . . 1 . AOE 2 | . . . . . 2 . Classes Destroyed 11 | 2 1 . 2 1 3 2 Worker 5 | . . . . 1 4 . Tunneler 2 | 1 . . . . . 1 Recycler 4 | 1 1 . . 1 1 . Watcher 4 | . . . . . 3 1 Swarmer 8 | . . . 3 4 1 . Grunt 15 | . 2 . 3 . 3 7 Brawler 1 | . . . . . 1 . Duelist 1 | . . . . . . 1 Sentry 6 | . . . 2 . 2 2 Hunter 2 | . . . . . 1 1 Programmer 1 | . . . . . . 1 Best Kill Streak 7 | 2 2 . 7 6 4 6 Combat Bots Only 7 | . 1 . 7 4 2 5 Max Kills in Single Turn 2 | 1 1 . 1 1 1 2 Gunslinging 1 | . . . . . . 1 Exploded 1 | . . . . . 1 . Melee . | . . . . . . . Uniques/NPCs Destroyed . | . . . . . . . Combat | -11 -10 -10 -9 -9 -8 -7 -------- Run | Yrd Mat Min Mat Min Mat Fac Hostile Shots Fired 350 | . 8 2 47 13 48 232 Missed 69 | . 1 1 9 2 10 46 Damage Taken 3666 | . 98 13 536 83 682 2254 Core 1026 | . 28 . 144 13 206 635 Absorbed by Shields . | . . . . . . . Core Remaining (%) 77 | 100 . 88 . 60 62 . Volleys Fired 137 | 5 9 1 30 12 43 37 Largest 3 | 2 2 2 2 2 2 3 Hottest 243 | 60 60 60 60 79 150 243 Shots Fired 266 | 10 18 2 51 24 74 87 Gun 253 | 10 18 2 51 24 62 86 Cannon . | . . . . . . . Launcher 7 | . . . . . 7 . Special 6 | . . . . . 5 1 Kinetic 148 | 5 9 1 30 12 18 73 Thermal 95 | 5 9 1 21 12 35 12 Explosive 7 | . . . . . 7 . Electromagnetic 16 | . . . . . 14 2 Robot Hit Streak 24 | 3 6 1 24 5 7 7 Robot Miss Streak 10 | 2 3 1 2 3 10 4 Penetration Max . | . . . . . . . Secondary Targets 4 | . . . . . 1 3 Max Gunslinging Chain 1 | . . . . . 1 1 Shots Hit Robots 177 | 6 12 1 40 14 44 60 Core Hits 100 | 3 6 . 14 7 29 41 Critical Kills 1 | . . . . . . 1 Critical Parts Destroyed 2 | . . . . . . 2 Critical Strikes 7 | . . . . 2 2 3 Burn 4 | . . . . 2 2 . Destroy 3 | . . . . . . 3 Melee Attacks . | . . . . . . . Impact . | . . . . . . . Slashing . | . . . . . . . Piercing . | . . . . . . . Sneak Attacks . | . . . . . . . Combat Hostiles . | . . . . . . . Follow-up Attacks . | . . . . . . . Damage Inflicted 3207 | 72 139 11 430 208 1110 1237 Guns 2673 | 72 139 11 430 208 746 1067 Cannons . | . . . . . . . Explosions 499 | . . . . . 330 169 Melee . | . . . . . . . Ramming 11 | . . . . . 10 1 Kinetic 1613 | 40 77 11 232 122 256 875 Thermal 984 | 32 62 . 198 86 434 172 Explosive 330 | . . . . . 330 . Electromagnetic 269 | . . . . . 80 189 Impact . | . . . . . . . Slashing . | . . . . . . . Piercing . | . . . . . . . Highest Corruption 1 | . . . . . . 1 Average Corruption 1 | . . . . . . 1 Corruption Purged . | . . . . . . . Corruption Blocked . | . . . . . . . Effects 5 | . . . . . . 5 Message Errors 3 | . . . . . . 3 Energy Discharges 1 | . . . . . . 1 Alerts 1 | . . . . . . 1 Overload Shots . | . . . . . . . Overflow Damage 41 | . . . . . 41 . Projectiles . | . . . . . . . Explosions 41 | . . . . . 41 . Melee . | . . . . . . . Knockbacks . | . . . . . . . Impact . | . . . . . . . Kinetic . | . . . . . . . Secondary . | . . . . . . . Self-Inflicted Damage 118 | . . . . . 118 . Shots 3 | . . . . . 3 . Rammed 2 | . . . . . 1 1 Targets Rammed 2 | . . . . . 1 1 Kicked . | . . . . . . . Crushed . | . . . . . . . Highest Temperature 619 | . 47 . 15 . 156 619 Average Temperature 90 | . 23 . 8 . 50 236 Received Heat Transfer 1182 | . 54 9 171 . 288 660 Effects 12 | . . . . . . 12 Shutdowns 1 | . . . . . . 1 Energy Bleed 2 | . . . . . . 2 Interference 3 | . . . . . . 3 Matter Decay 1 | . . . . . . 1 Short Circuit 1 | . . . . . . 1 Damage (major) 3 | . . . . . . 3 Damage (core) 1 | . . . . . . 1 Siege Activations . | . . . . . . . Robots Corrupted . | . . . . . . . Combat Hostiles . | . . . . . . . Parts Fried 2 | . . . . . 1 1 Impact Corruptions . | . . . . . . . Robots Melted . | . . . . . . . Combat Hostiles . | . . . . . . . Parts Melted 2 | . . . . 1 1 . Heat Transferred 2588 | 75 150 . 450 370 1156 387 Parts Sabotaged . | . . . . . . . Parts Stolen . | . . . . . . . Parts Stripped . | . . . . . . . Power Chain Reactions . | . . . . . . . Alert | -11 -10 -10 -9 -9 -8 -7 ------- Run | Yrd Mat Min Mat Min Mat Fac Peak Influence 475 | 10 76 29 210 181 270 475 Initial 122 | . 6 29 11 81 70 122 Average 140 | 3 44 29 131 119 112 248 Maximum Alert Level 2 | . . . 1 . 1 2 Low Security (%) 73 | 100 100 100 67 100 81 46 Level 1 21 | . . . 32 . 18 37 Level 2 4 | . . . . . . 15 Level 3 . | . . . . . . . Level 4 . | . . . . . . . Level 5 . | . . . . . . . High Security . | . . . . . . . Max Security . | . . . . . . . Squads Dispatched 7 | . . . . . 1 6 Investigation 3 | . . . . . 1 2 Extermination 1 | . . . . . . 1 Reinforcement . | . . . . . . . Assault . | . . . . . . . Garrison 3 | . . . . . . 3 Intercept . | . . . . . . . Searches Triggered . | . . . . . . . Construction Impeded . | . . . . . . . Haulers Reinforced . | . . . . . . . Active Scanning Responses . | . . . . . . . Cargo Convoy Interrupts . | . . . . . . . Stealth | -11 -10 -10 -9 -9 -8 -7 --------- Run | Yrd Mat Min Mat Min Mat Fac Distress Signals 2 | . . . . 1 1 . Communications Jammed . | . . . . . . . Distress Signals . | . . . . . . . Times Spotted 50 | . 3 2 8 4 18 15 Peak Tracking Total 5 | . 2 3 3 2 4 5 Tactical Retreats 6 | . 1 . . . 5 . Traps | -11 -10 -10 -9 -9 -8 -7 ------- Run | Yrd Mat Min Mat Min Mat Fac Traps Triggered 2 | . . . . 1 . 1 Indirectly . | . . . . . . . Trap Hack Attempts . | . . . . . . . Triggered . | . . . . . . . Disarmed . | . . . . . . . Reprogrammed . | . . . . . . . Reused . | . . . . . . . Traps Extracted . | . . . . . . . Installed . | . . . . . . . Triggered 1 | . . . . 1 . . Machines | -11 -10 -10 -9 -9 -8 -7 ---------- Run | Yrd Mat Min Mat Min Mat Fac Machines Disabled 11 | . . . . . 2 9 Max in Single Turn 7 | . . . . . 1 7 Machines Repaired . | . . . . . . . Machines Dismantled . | . . . . . . . Machines Sabotaged . | . . . . . . . Overloaded Fab Kills . | . . . . . . . Hacking | -11 -10 -10 -9 -9 -8 -7 --------- Run | Yrd Mat Min Mat Min Mat Fac Machines Accessed 9 | . 1 . 2 1 3 2 Terminals 6 | . 1 . 2 . 2 1 Fabricators . | . . . . . . . Repair Stations . | . . . . . . . Recycling Units 1 | . . . . . 1 . Scanalyzers . | . . . . . . . Garrison Access 1 | . . . . . . 1 Total Hacks 28 | . 2 . 7 1 14 4 Successful 15 | . . . 3 1 11 . Failed 13 | . 2 . 4 . 3 4 Catastrophic 4 | . 1 . . . 1 2 Database Lockouts . | . . . . . . . Manual 2 | . . . . 2 . . Terminals 18 | . 2 . 7 . 7 2 Fabricators . | . . . . . . . Repair Stations . | . . . . . . . Recycling Units 7 | . . . . . 7 . Scanalyzers . | . . . . . . . Garrison Access 2 | . . . . . . 2 Terminal Hacks 8 | . . . 3 1 4 . Open Door 1 | . . . . 1 . . Level Access Points 1 | . . . 1 . . . Emergency Access Points 1 | . . . . . 1 . Alert Level 2 | . . . 1 . 1 . Locate Traps 1 | . . . . . 1 . Surveillance Status 1 | . . . 1 . . . Hauler Manifests 1 | . . . . . 1 . Fabricator Hacks . | . . . . . . . Repair Station Hacks . | . . . . . . . Recycling Unit Hacks 7 | . . . . . 7 . Recycle Component 3 | . . . . . 3 . Process 1 | . . . . . 1 . Report Inventory 1 | . . . . . 1 . Retrieve Matter 1 | . . . . . 1 . Retrieve Components 1 | . . . . . 1 . Scanalyzer . | . . . . . . . Garrison Access Hacks . | . . . . . . . Unauthorized Hacks . | . . . . . . . Terminals . | . . . . . . . Fabricators . | . . . . . . . Repair Stations . | . . . . . . . Recycling Units . | . . . . . . . Scanalyzers . | . . . . . . . Garrison Access . | . . . . . . . Data Cores Recovered . | . . . . . . . Used . | . . . . . . . Hacking Detections 7 | . 1 . 1 . 3 2 Full Trace Events 4 | . 1 . . . 1 2 Feedback Events . | . . . . . . . Feedback Blocked . | . . . . . . . Robot Schematics Acquired . | . . . . . . . Robots Built . | . . . . . . . Authchips . | . . . . . . . Time . | . . . . . . . Total Robot Build Rating . | . . . . . . . Part Schematics Acquired . | . . . . . . . Parts Built . | . . . . . . . Authchips . | . . . . . . . Time . | . . . . . . . Total Part Build Rating . | . . . . . . . Parts Repaired . | . . . . . . . Time . | . . . . . . . Parts Recycled 3 | . . . . . 3 . Recycled Matter 14 | . . . . . 14 . Retrieved Matter 14 | . . . . . 14 . Retrieved Components 1 | . . . . . 1 . Parts Scanalyzed . | . . . . . . . Part Schematics Acquired . | . . . . . . . Parts Damaged . | . . . . . . . Bothacking | -11 -10 -10 -9 -9 -8 -7 ------------ Run | Yrd Mat Min Mat Min Mat Fac Used RIF Installer . | . . . . . . . Robots Hacked . | . . . . . . . Non-combat . | . . . . . . . Combat . | . . . . . . . Robot Hacks Applied . | . . . . . . . Relay Couplers Released . | . . . . . . . Fabnet Peak Effective % . | . . . . . . . Robots Rewired . | . . . . . . . Allies Hacked . | . . . . . . . Hacks Repelled . | . . . . . . . Allies | -11 -10 -10 -9 -9 -8 -7 -------- Run | Yrd Mat Min Mat Min Mat Fac Total Allies . | . . . . . . . Largest Group . | . . . . . . . Highest-Rated Group . | . . . . . . . Highest-Rated Ally . | . . . . . . . Total Orders . | . . . . . . . Ally Attacks . | . . . . . . . Total Damage . | . . . . . . . Kills . | . . . . . . . Allies Corrupted . | . . . . . . . Allies Melted . | . . . . . . . Intel | -11 -10 -10 -9 -9 -8 -7 ------- Run | Yrd Mat Min Mat Min Mat Fac Robot Analysis Total . | . . . . . . . Derelict Logs Recovered 2 | . . 2 . . . . Drone Launches . | . . . . . . . Drone Recoveries . | . . . . . . . Exploration | -11 -10 -10 -9 -9 -8 -7 ------------- Run | Yrd Mat Min Mat Min Mat Fac Turns Passed 2148 | 91 175 112 255 106 788 621 Spaces Moved 1394 | 60 104 110 140 49 476 455 Core 10 | 3 . . . . 7 . Treads . | . . . . . . . Legs 34 | . . . . . 34 . Wheels 1350 | 57 104 110 140 49 435 455 Hover . | . . . . . . . Flight . | . . . . . . . Fastest Speed 50 | 50 100 100 100 100 86 95 Average Speed 103 | 99 100 100 105 110 110 97 Slowest Speed 600 | 100 100 100 115 115 600 130 Overloaded Moves . | . . . . . . . Propulsion Burnouts . | . . . . . . . Robots Hopped . | . . . . . . . Cave-ins Triggered . | . . . . . . . Exploration Rate (%) 18 | 5 16 39 10 7 36 14 Regions Visited 6 Branch Regions 2 Pre-discovered Areas 1 | . . 1 . . . . Known Exits Taken 2 | . . . . 1 1 . Unknown Exits Taken 4 | 1 1 1 1 . . . Scrap Searched . | . . . . . . . Spaces Dug 4 | . . . . . 4 . Terrain Destroyed 69 | . . . . . 59 10 Melee . | . . . . . . . Projectile 4 | . . . . . 4 . AOE 65 | . . . . . 55 10 Terrain Rammed . | . . . . . . . Walls Destroyed . | . . . . . . . Machines Disabled . | . . . . . . . Actions | -11 -10 -10 -9 -9 -8 -7 --------- Run | Yrd Mat Min Mat Min Mat Fac Total 1825 | 78 158 110 198 75 649 557 Wait 156 | . 37 . 12 2 64 41 Move 1388 | 59 103 109 139 48 475 455 Hop . | . . . . . . . Pick Up 52 | 7 5 . 3 7 24 6 Fast Attach 15 | 6 . . 2 4 3 . Attach 30 | 1 . . 3 1 12 13 Detach 7 | . . . . 1 5 1 Swap 21 | . 1 . 4 . 13 3 Drop 17 | . 3 . 5 . 9 . Fire 137 | 5 9 1 30 12 43 37 Melee . | . . . . . . . Ram 2 | . . . . . 1 1 Kick . | . . . . . . . Crush . | . . . . . . . Escape Stasis . | . . . . . . . Rewire . | . . . . . . . Trap . | . . . . . . . Miscellaneous . | . . . . . . . Route ------- -11/Scrapyard -10/Materials -10/Mines -9/Materials (discovered 5 exits: Mat x3 / *Min / [*Sto]) -9/Mines -8/Materials -7/Factory History --------- Turn | Location | Event 13 | -11/Scrapyard | Discovered new exit (range 15) 92 | -11/Scrapyard | Entered Materials 256 | -10/Materials | Discovered new exit (range 6) 267 | -10/Materials | Entered Mines 268 | -10/Mines | Learned location of Storage (-9) 269 | -10/Mines | Met a Derelict bent on vengeance 317 | -10/Mines | Build established: Mutant 351 | -10/Mines | Learned Materials terminal intel 358 | -10/Mines | Discovered new exit (range 8) 372 | -10/Mines | Learned Materials interactive machine intel 379 | -10/Mines | Entered Materials 379 | -9/Materials | Evolved 2 slots: Utility x2 380 | -9/Materials | Loaded intel: 18 interactive machine locations 381 | -9/Materials | Loaded intel: 12 terminal locations 384 | -9/Materials | Discovered new exit (range 15) 437 | -9/Materials | Identified exit to Materials 473 | -9/Materials | Discovered new exit (range 7) 520 | -9/Materials | Destroyed 7 combat bots 602 | -9/Materials | Lost 3 parts (1p2w) 634 | -9/Materials | Entered Mines 639 | -9/Mines | Met a Derelict who couldn't figure out how to use a Trap Extractor 730 | -9/Mines | Discovered exit to Materials (range 3) 738 | -9/Mines | Received a Rocket Launcher from a helpful Derelict 740 | -9/Mines | Entered Materials 740 | -8/Materials | Evolved 2 slots: Propulsion x1, Utility x1 1100 | -8/Materials | Lost 8 parts (3n2u3w) 1482 | -8/Materials | Discovered new exit (range 9) 1517 | -8/Materials | Identified exit to Factory 1528 | -8/Materials | Entered Factory 1528 | -7/Factory | Evolved 2 slots: Utility x1, Weapon x1 1859 | -7/Factory | Lost 4 parts (1p2n1u) 2139 | -7/Factory | Core integrity fell below 50% 2148 | -7/Factory | Core integrity fell below 20% 2149 | -7/Factory | Self-destructed Last Messages --------------- 02139_ Weapon Cycler temporarily disabled. 02139_ Imp. Signal Interpreter temporarily disabled. 02140_ Y-54 Guardian emerges from the garrison. 02140_ Overheating: Mic. Nuclear Core damaged (-6). 02140_ Overheating: Imp. Signal Interpreter damaged (-12). 02140_ Overheating: Weapon Cycler damaged (-1). 02141_ Mic. Nuclear Core broken. 02141_ Overheating: Short circuit. 02143_ Overheating: System interference. 02143_ Gatling Laser temporarily disabled. 02144_ Slammed into Y-54 Guardian. 02144_ Broken Mic. Nuclear Core destroyed. 02144_ Weapon Cycler destroyed. 02145_ Acquired 31 matter. 02147_ Overheating: Core damaged (-119). 02147_ Gatling Laser destroyed. 02147_ Transmission Jammer destroyed. Map ----- +----------------------------------------------------+ | | | | | | | | | | | | | | | | | | | | | | | | | | | | | | | | | | | | | | | | | | | | | | | | | ???????????????????????########################### | | ???????????????????????#Y@Y ! # ] | | ???????????????????????#%"= # | | ???????????????????????#!"" """ """ # """" """" | | ???????????????????????# G """ """?# """" """" | | ???????????????????????# "" """ """ # """" """" | | ???????????????????????# " # """" """" | | ???????????????????????# """ """ # """" """" | | ???????????????????????# """ """ # """" """" | | ???????????????????????# """ """ # | | ???????????????????????# # = | | ???????????????????????# # | | ???????????????????????#######+#############+##### | | ???????????????????????????# | | ???????????????????????????# | | ???????????????????????????# """ | | ???????????????????????????# """ | | ????????????????????????? """ | | ????????????????????????######+#######+### | | ?????????????????????????????????????????# | | ?????????????????????????????????????????# | | ?????????????????????????????????????????# | | ?????????????????????????????????????????# "" | | ?????????????????????????????????????????# "" | | ?????????????????????????????????????????# | | ?????????????????????????????????????????# | +----------------------------------------------------+ Best States ------------- Heat Dissipation 44 Energy Generation 18 Energy Capacity 265 Matter Stores 300 Matter Capacity 300 Sight Range 16 Robot Scan Range 15 Terrain Scan Range 16 Terrain Scan Density 110 Armor Coverage 450 Weapon Cycling 15 Evasion (%) 42 Matter Filtering 30 Item Schematics ----------------- None Robot Schematics ------------------ None Fabricated ------------ Nothing Alien Tech Used ----------------- None Achievements -------------- Omniscient Cartographer Challenges ------------ None Game ------ Seed RainbowMetaScreen Manual? 0 Play Time 00:35:24 Cumulative 14.9 hours Start 2024.04.25 @ 21:45:15 End 2024.04.25 @ 22:21:09 Sessions 1 Manual Loads 0 Difficulty Rogue Special Mode None Game No. 22 Rogue 22 Adventurer 0 Explorer 0 Win Type - Total 0 Types 0/0/0/0/0/0/0/0/0 Lore% 18 Gallery% 19 Achievement% 18 Wizard Run 0 Options --------- Layout 1 ASCII 0 Keyboard 1 Movement Arrows Keybinds 0 Fullscreen 1 Font 24/Smallcaps Map View 50x35 Zoom Use 0% Tactical HUD 1 Map Filters NONE Filters NONE Steam 1 RUN: 81320b99-8cba-4bc8-85a1-2180ae7f390a